Department Family,Entity,Date,Expense Type,Expense Area,Supplier,Transaction Number,AP Amount,Description,Supplier Postcode,Purchase Invoice Number
Department of Health,NHS North East Lincolnshire CCG,31/01/2021,Clinical&Medical-Independent Sector,PLANNED CARE,INHEALTH PAIN MANAGEMENT SOLUTIONS LTD,35160146,"31,513.72",https://nww.einvoice-prod.sbs.nhs.uk:8179/invoicepdf/9db3a867-99a3-5596-aff9-a9912b89adcf,HP11 1JL,PMSIN001823
Department of Health,NHS North East Lincolnshire CCG,31/01/2021,C&M-PMS Prem Actual Rent,PRC DELEGATED CO-COMMISSIONING,CARE PLUS GROUP LTD,35160159,"61,014.35",https://nww.einvoice-prod.sbs.nhs.uk:8179/invoicepdf/b2c26428-f8bb-58fb-9c60-32320b6eda9b,DN32 7DH,16138
Department of Health,NHS North East Lincolnshire CCG,31/01/2021,Clinical&Medical-Independent Sector,ACUTE COMMISSIONING,NEW MEDICAL SYSTEMS LTD,35160162,"81,394.12",https://nww.einvoice-prod.sbs.nhs.uk:8179/invoicepdf/060c0e29-a8b8-5dc7-bf49-838dc45eaddf,SE1 6ES,00003652
Department of Health,NHS North East Lincolnshire CCG,31/01/2021,Clinical&Medical-Clinical Other,PATIENT TRANSPORT,THAMES AMBULANCE SERVICE LTD,35160166,"28,302.56",https://nww.einvoice-prod.sbs.nhs.uk:8179/invoicepdf/9a5778c4-ac0e-5feb-bab3-7e3c51793965,LN6 3AH,22145
Department of Health,NHS North East Lincolnshire CCG,31/01/2021,Clinical&Medical-Clinical Other,PATIENT TRANSPORT,THAMES AMBULANCE SERVICE LTD,35160171,"87,553.72",https://nww.einvoice-prod.sbs.nhs.uk:8179/invoicepdf/a399f3ee-e6a3-5efe-b701-5577c0ee7738,LN6 3AH,22143
Department of Health,NHS North East Lincolnshire CCG,31/01/2021,Amts owed byJVs&Assocs<1Yr-Oth Cont,BALANCE SHEET,NORTH EAST LINCOLNSHIRE COUNCIL,35176293,"350,000.00",MATCH TO PPNOINV12212,DN31 1HU,NOINV12212
Department of Health,NHS North East Lincolnshire CCG,31/01/2021,Clinical&Medical-Othe Public Sector,CHILD AND ADOLESCENT MENTAL HEALTH,NORTH EAST LINCOLNSHIRE COUNCIL,35177733,"98,328.00",,DN31 1HU,S1661100
Department of Health,NHS North East Lincolnshire CCG,31/01/2021,Recharge : Received,PRIMARY CARE IT,ROXTON PRACTICE,35177739,"50,000.00",https://nww.einvoice-prod.sbs.nhs.uk:8179/invoicepdf/4156cacc-8aba-5a63-896c-35d7372a0a1e,DN40 1JW,4551
Department of Health,NHS North East Lincolnshire CCG,31/01/2021,Clinical&Medical-Commercial Sector,PLANNED CARE,360 CARE LTD,35177777,"29,358.00",https://nww.einvoice-prod.sbs.nhs.uk:8179/invoicepdf/c9f7c2e3-124f-5ae9-ad06-ea433ce02710,DN31 2BH,36166
Department of Health,NHS North East Lincolnshire CCG,31/01/2021,LPF Management Fees,PRIMARY CARE IT,N3I LTD,35198561,"45,604.00",https://nww.einvoice-prod.sbs.nhs.uk:8179/invoicepdf/ca07bbd9-97ae-55a6-b070-03417564f84a,HU3 4AE,307
Department of Health,NHS North East Lincolnshire CCG,31/01/2021,Clinical&Medical-Independent Sector,OUT OF HOURS,CORE CARE LINKS,35208072,"111,217.35",https://nww.einvoice-prod.sbs.nhs.uk:8179/invoicepdf/6013902d-59da-5d22-8136-e5bf9d10acec,DN34 5LP,1201
Department of Health,NHS North East Lincolnshire CCG,31/01/2021,Clinical&Medical-Independent Sector,OUT OF HOURS,CORE CARE LINKS,35208072,"9,052.75",,DN34 5LP,1201
Department of Health,NHS North East Lincolnshire CCG,31/01/2021,Clinical&Medical-Independent Sector,COMMUNITY SERVICES,YARBOROUGH CLEE CARE LTD,35208073,"110,905.00",https://nww.einvoice-prod.sbs.nhs.uk:8179/invoicepdf/b0b4b1f2-0325-506b-8893-cb8518812dbc,DN34 4GB,1955
Department of Health,NHS North East Lincolnshire CCG,31/01/2021,Clinical&Medical-Clinical Other,PRC DELEGATED CO-COMMISSIONING,NAVIGO,35208086,"3,750.00",,DN32 0QE,SALINV6029
Department of Health,NHS North East Lincolnshire CCG,31/01/2021,Clinical&Medical-Not For Profit,MENTAL HEALTH CONTRACTS,NAVIGO,35208086,"2,103,781.00",https://nww.einvoice-prod.sbs.nhs.uk:8179/invoicepdf/d8af4f09-9062-57f6-9b0e-e0542e584dd9,DN32 0QE,SALINV6029
Department of Health,NHS North East Lincolnshire CCG,31/01/2021,Clinical&Medical-Not For Profit,MENTAL HEALTH CONTRACTS,NAVIGO,35208086,"486,508.00",,DN32 0QE,SALINV6029
Department of Health,NHS North East Lincolnshire CCG,31/01/2021,Soc Care-Other Soc Care,ASC SLA/CONTRACTS,NAVIGO,35208086,"260,574.00",,DN32 0QE,SALINV6029
Department of Health,NHS North East Lincolnshire CCG,31/01/2021,Clinical&Medical-Not For Profit,COMMUNITY SERVICES,FOCUS INDEPENDENT ADULT SOCIAL WORK CIC,35208092,"56,250.00",,DN31 1SY,3632
Department of Health,NHS North East Lincolnshire CCG,31/01/2021,Soc Care-Other Soc Care,ASC SLA/CONTRACTS,FOCUS INDEPENDENT ADULT SOCIAL WORK CIC,35208092,"261,103.45",http://nww.docserv.wyss.nhs.uk/synergyiim/dist/?val=3131801_13738504_20201230155931,DN31 1SY,3632
Department of Health,NHS North East Lincolnshire CCG,31/01/2021,Soc Care-Other Soc Care,ASC SLA/CONTRACTS,FOCUS INDEPENDENT ADULT SOCIAL WORK CIC,35208092,"1,305,517.25",,DN31 1SY,3632
Department of Health,NHS North East Lincolnshire CCG,31/01/2021,Clinical&Medical-Voluntary Sector,HOSPICES,ST ANDREWS HOSPICE,35208097,"144,702.86",https://nww.einvoice-prod.sbs.nhs.uk:8179/invoicepdf/8e663ffc-8e55-5b6d-bac0-2cdd35d613e6,DN32 9RP,202152
Department of Health,NHS North East Lincolnshire CCG,31/01/2021,Clinical&Medical-Othe Public Sector,CHILD AND ADOLESCENT MENTAL HEALTH,NORTH EAST LINCOLNSHIRE COUNCIL,35208103,"255,645.00",,DN31 1HU,S1761112
Department of Health,NHS North East Lincolnshire CCG,31/01/2021,Clinical&Medical-Othe Public Sector,CHILDREN AND YOUNG PERSONS PALLIATIVE CARE,NORTH EAST LINCOLNSHIRE COUNCIL,35208103,"13,165.00",,DN31 1HU,S1761112
Department of Health,NHS North East Lincolnshire CCG,31/01/2021,Clinical&Medical-Othe Public Sector,COMMISSIONING - NON ACUTE,NORTH EAST LINCOLNSHIRE COUNCIL,35208103,"37,016.00",,DN31 1HU,S1761112
Department of Health,NHS North East Lincolnshire CCG,31/01/2021,Clinical&Medical-Commercial Sector,PLANNED CARE,VIRGIN CARE EAST RIDING LLP,35208110,"86,043.00",,W4A 4GE,301628002
Department of Health,NHS North East Lincolnshire CCG,31/01/2021,Clinical&Medical-Clinical Other,PRC DELEGATED CO-COMMISSIONING,CARE PLUS GROUP LTD,35208112,"18,333.00",,DN32 7DH,16181
Department of Health,NHS North East Lincolnshire CCG,31/01/2021,Clinical&Medical-Independent Sector,COMMUNITY SERVICES,CARE PLUS GROUP LTD,35208112,"29,166.00",,DN32 7DH,16181
Department of Health,NHS North East Lincolnshire CCG,31/01/2021,Clinical&Medical-Not For Profit,COMMUNITY SERVICES,CARE PLUS GROUP LTD,35208112,"851,348.00",https://nww.einvoice-prod.sbs.nhs.uk:8179/invoicepdf/c48d8e05-4fec-5389-a04f-076cf2b4b74e,DN32 7DH,16181
Department of Health,NHS North East Lincolnshire CCG,31/01/2021,Clinical&Medical-Not For Profit,COMMUNITY SERVICES,CARE PLUS GROUP LTD,35208112,"537,402.00",,DN32 7DH,16181
Department of Health,NHS North East Lincolnshire CCG,31/01/2021,Soc Care-Other Soc Care,ASC SLA/CONTRACTS,CARE PLUS GROUP LTD,35208112,"283,731.00",,DN32 7DH,16181
Department of Health,NHS North East Lincolnshire CCG,31/01/2021,Clinical&Medical-Not For Profit,Winter Resilience,CARE PLUS GROUP LTD,35223644,"27,698.35",https://nww.einvoice-prod.sbs.nhs.uk:8179/invoicepdf/d1b5deb5-d2a5-5d5a-b0ae-569e4063ef52,DN32 7DH,16173
Department of Health,NHS North East Lincolnshire CCG,31/01/2021,C&M-PMS Contract Value,PRC DELEGATED CO-COMMISSIONING,BEACON MEDICAL,35230719,"102,173.04",BABALP,DN35 8EB,KHU000042102
Department of Health,NHS North East Lincolnshire CCG,31/01/2021,C&M-PMS List Size Adjustment,PRC DELEGATED CO-COMMISSIONING,BEACON MEDICAL,35230719,692.62,LISTAP,DN35 8EB,KHU000042102
Department of Health,NHS North East Lincolnshire CCG,31/01/2021,C&M-PMS PCN DES Participation,PRC DELEGATED CO-COMMISSIONING,BEACON MEDICAL,35230719,"1,928.45",PARTIP,DN35 8EB,KHU000042102
Department of Health,NHS North East Lincolnshire CCG,31/01/2021,C&M-PMS PCO Other,PRC DELEGATED CO-COMMISSIONING,BEACON MEDICAL,35230719,741.30,CQCRP,DN35 8EB,KHU000042102
Department of Health,NHS North East Lincolnshire CCG,31/01/2021,C&M-PMS Prem Rates,PRC DELEGATED CO-COMMISSIONING,BEACON MEDICAL,35230719,"1,313.00",RANDRP,DN35 8EB,KHU000042102
Department of Health,NHS North East Lincolnshire CCG,31/01/2021,C&M-PMS QOF Aspiration,PRC DELEGATED CO-COMMISSIONING,BEACON MEDICAL,35230719,"10,941.21",QUASPP,DN35 8EB,KHU000042102
Department of Health,NHS North East Lincolnshire CCG,31/01/2021,ME - PMS GP Prior Year ERs,PRC DELEGATED CO-COMMISSIONING,BEACON MEDICAL,35230719,"6,590.86",PRYERP,DN35 8EB,KHU000042102
Department of Health,NHS North East Lincolnshire CCG,31/01/2021,ME-PMS GP Pension EEs Adjs - PMS,PRC DELEGATED CO-COMMISSIONING,BEACON MEDICAL,35230719,"2,083.32",PENEEP,DN35 8EB,KHU000042102
Department of Health,NHS North East Lincolnshire CCG,31/01/2021,ME-PMS GP Pension ERs Adjs - PMS,PRC DELEGATED CO-COMMISSIONING,BEACON MEDICAL,35230719,"2,396.68",PENERP,DN35 8EB,KHU000042102
Department of Health,NHS North East Lincolnshire CCG,31/01/2021,ME-PMS GP Prior Year EEs,PRC DELEGATED CO-COMMISSIONING,BEACON MEDICAL,35230719,"5,729.13",PRYEEP,DN35 8EB,KHU000042102
Department of Health,NHS North East Lincolnshire CCG,31/01/2021,C&M-PMS Contract Value,PRC DELEGATED CO-COMMISSIONING,DR B BISWAS,35230721,"19,546.92",BABALP,DN35 7DL,KHU000042104
Department of Health,NHS North East Lincolnshire CCG,31/01/2021,C&M-PMS PCN DES Participation,PRC DELEGATED CO-COMMISSIONING,DR B BISWAS,35230721,368.94,PARTIP,DN35 7DL,KHU000042104
Department of Health,NHS North East Lincolnshire CCG,31/01/2021,C&M-PMS Prem Notional Rent,PRC DELEGATED CO-COMMISSIONING,DR B BISWAS,35230721,"3,241.67",NRENT,DN35 7DL,KHU000042104
Department of Health,NHS North East Lincolnshire CCG,31/01/2021,C&M-PMS Prem Rates,PRC DELEGATED CO-COMMISSIONING,DR B BISWAS,35230721,464.00,RANDRP,DN35 7DL,KHU000042104
Department of Health,NHS North East Lincolnshire CCG,31/01/2021,C&M-PMS QOF Aspiration,PRC DELEGATED CO-COMMISSIONING,DR B BISWAS,35230721,"2,152.61",QUASPP,DN35 7DL,KHU000042104
Department of Health,NHS North East Lincolnshire CCG,31/01/2021,C&M-PMS Contract Value,PRC DELEGATED CO-COMMISSIONING,DR GG DE & PARTNERS,35230723,"34,220.45",BABALP,DN312BH,KHU000042106
Department of Health,NHS North East Lincolnshire CCG,31/01/2021,C&M-PMS List Size Adjustment,PRC DELEGATED CO-COMMISSIONING,DR GG DE & PARTNERS,35230723,502.97,LISTAP,DN312BH,KHU000042106
Department of Health,NHS North East Lincolnshire CCG,31/01/2021,C&M-PMS PCN DES Participation,PRC DELEGATED CO-COMMISSIONING,DR GG DE & PARTNERS,35230723,645.89,PARTIP,DN312BH,KHU000042106
Department of Health,NHS North East Lincolnshire CCG,31/01/2021,C&M-PMS Prem Rates,PRC DELEGATED CO-COMMISSIONING,DR GG DE & PARTNERS,35230723,"1,388.00",RANDRP,DN312BH,KHU000042106
Department of Health,NHS North East Lincolnshire CCG,31/01/2021,C&M-PMS QOF Aspiration,PRC DELEGATED CO-COMMISSIONING,DR GG DE & PARTNERS,35230723,"3,555.36",QUASPP,DN312BH,KHU000042106
Department of Health,NHS North East Lincolnshire CCG,31/01/2021,C&M-PMS DES Extended Hours Access,PRC DELEGATED CO-COMMISSIONING,DR R MATHEWS,35230726,"-11,358.33",EXTHDP,DN313AE,KHU000042109
Department of Health,NHS North East Lincolnshire CCG,31/01/2021,C&M-PMS List Size Adjustment,PRC DELEGATED CO-COMMISSIONING,DR R MATHEWS,35230726,-173.45,LISTAP,DN313AE,KHU000042109
Department of Health,NHS North East Lincolnshire CCG,31/01/2021,C&M-PMS Out of Hours Opt Outs,PRC DELEGATED CO-COMMISSIONING,DR R MATHEWS,35230726,"-1,597.68",APMOOH,DN313AE,KHU000042109
Department of Health,NHS North East Lincolnshire CCG,31/01/2021,C&M-PMS PCN DES Clinical Director,PRC DELEGATED CO-COMMISSIONING,DR R MATHEWS,35230726,"-5,655.67",CLINDP,DN313AE,KHU000042109
Department of Health,NHS North East Lincolnshire CCG,31/01/2021,C&M-PMS PCN DES PCN support,LOCAL ENHANCED SERVICES,DR R MATHEWS,35230726,"-11,750.00",PCNSUP,DN313AE,KHU000042109
Department of Health,NHS North East Lincolnshire CCG,31/01/2021,ME-PMS GP Pension EEs-PMS,PRC DELEGATED CO-COMMISSIONING,DR R MATHEWS,35230726,"-5,437.50",SUPCEE,DN313AE,KHU000042109
Department of Health,NHS North East Lincolnshire CCG,31/01/2021,ME-PMS GP Pension ERs Adjs - PMS,PRC DELEGATED CO-COMMISSIONING,DR R MATHEWS,35230726,"-5,392.50",SUPCER,DN313AE,KHU000042109
Department of Health,NHS North East Lincolnshire CCG,31/01/2021,C&M- PCN DES CARE HOME PREMIUM,PRC DELEGATED CO-COMMISSIONING,DR R MATHEWS,35230727,"6,750.00",CHOMPP,DN313AE,KHU000042110
Department of Health,NHS North East Lincolnshire CCG,31/01/2021,C&M-PMS Contract Value,PRC DELEGATED CO-COMMISSIONING,DR R MATHEWS,35230727,"33,653.00",BABALP,DN313AE,KHU000042110
Department of Health,NHS North East Lincolnshire CCG,31/01/2021,C&M-PMS DES Extended Hours Access,PRC DELEGATED CO-COMMISSIONING,DR R MATHEWS,35230727,"22,716.66",EXTHDP,DN313AE,KHU000042110
Department of Health,NHS North East Lincolnshire CCG,31/01/2021,C&M-PMS PCN DES Clinical Director,PRC DELEGATED CO-COMMISSIONING,DR R MATHEWS,35230727,"11,311.34",CLINDP,DN313AE,KHU000042110
Department of Health,NHS North East Lincolnshire CCG,31/01/2021,C&M-PMS PCN DES PCN support,LOCAL ENHANCED SERVICES,DR R MATHEWS,35230727,"23,500.00",PCNSUP,DN313AE,KHU000042110
Department of Health,NHS North East Lincolnshire CCG,31/01/2021,C&M-PMS PCN DES Participation,PRC DELEGATED CO-COMMISSIONING,DR R MATHEWS,35230727,635.18,PARTIP,DN313AE,KHU000042110
Department of Health,NHS North East Lincolnshire CCG,31/01/2021,C&M-PMS PCO Other,PRC DELEGATED CO-COMMISSIONING,DR R MATHEWS,35230727,297.60,CQCRP,DN313AE,KHU000042110
Department of Health,NHS North East Lincolnshire CCG,31/01/2021,C&M-PMS Prem Actual Rent,PRC DELEGATED CO-COMMISSIONING,DR R MATHEWS,35230727,"1,648.69",RENT,DN313AE,KHU000042110
Department of Health,NHS North East Lincolnshire CCG,31/01/2021,C&M-PMS Prem Rates,PRC DELEGATED CO-COMMISSIONING,DR R MATHEWS,35230727,906.00,RANDRP,DN313AE,KHU000042110
Department of Health,NHS North East Lincolnshire CCG,31/01/2021,C&M-PMS QOF Aspiration,PRC DELEGATED CO-COMMISSIONING,DR R MATHEWS,35230727,"3,118.15",QUASPP,DN313AE,KHU000042110
Department of Health,NHS North East Lincolnshire CCG,31/01/2021,C&M-PMS Contract Value,PRC DELEGATED CO-COMMISSIONING,LITTLEFIELD,35230729,"42,845.17",BABALP,DN34 4GB,KHU000042114
Department of Health,NHS North East Lincolnshire CCG,31/01/2021,C&M-PMS List Size Adjustment,PRC DELEGATED CO-COMMISSIONING,LITTLEFIELD,35230729,294.87,LISTAP,DN34 4GB,KHU000042114
Department of Health,NHS North East Lincolnshire CCG,31/01/2021,C&M-PMS PCN DES Participation,PRC DELEGATED CO-COMMISSIONING,LITTLEFIELD,35230729,808.68,PARTIP,DN34 4GB,KHU000042114
Department of Health,NHS North East Lincolnshire CCG,31/01/2021,C&M-PMS PCO Other,PRC DELEGATED CO-COMMISSIONING,LITTLEFIELD,35230729,361.00,CQCRP,DN34 4GB,KHU000042114
Department of Health,NHS North East Lincolnshire CCG,31/01/2021,C&M-PMS QOF Aspiration,PRC DELEGATED CO-COMMISSIONING,LITTLEFIELD,35230729,"3,947.82",QUASPP,DN34 4GB,KHU000042114
Department of Health,NHS North East Lincolnshire CCG,31/01/2021,C&M-PMS Contract Value,PRC DELEGATED CO-COMMISSIONING,RAJ MEDICAL CENTRE,35230731,"47,909.54",BABALP,DN34 5LP,KHU000042116
Department of Health,NHS North East Lincolnshire CCG,31/01/2021,C&M-PMS PCN DES Participation,PRC DELEGATED CO-COMMISSIONING,RAJ MEDICAL CENTRE,35230731,904.26,PARTIP,DN34 5LP,KHU000042116
Department of Health,NHS North East Lincolnshire CCG,31/01/2021,C&M-PMS Prem Rates,PRC DELEGATED CO-COMMISSIONING,RAJ MEDICAL CENTRE,35230731,"2,637.00",RANDRP,DN34 5LP,KHU000042116
Department of Health,NHS North East Lincolnshire CCG,31/01/2021,C&M-PMS QOF Aspiration,PRC DELEGATED CO-COMMISSIONING,RAJ MEDICAL CENTRE,35230731,"4,996.39",QUASPP,DN34 5LP,KHU000042116
Department of Health,NHS North East Lincolnshire CCG,31/01/2021,C&M-PMS DES Extended Hours Access,PRC DELEGATED CO-COMMISSIONING,ROXTON PRACTICE,35230734,"-4,487.87",EXTHDP,DN40 1JW,KHU000042119
Department of Health,NHS North East Lincolnshire CCG,31/01/2021,C&M-PMS PCN DES Clinical Director,PRC DELEGATED CO-COMMISSIONING,ROXTON PRACTICE,35230734,"-2,234.65",CLINDP,DN40 1JW,KHU000042119
Department of Health,NHS North East Lincolnshire CCG,31/01/2021,C&M-PMS PCN DES PCN support,LOCAL ENHANCED SERVICES,ROXTON PRACTICE,35230734,"-4,642.63",PCNSUP,DN40 1JW,KHU000042119
Department of Health,NHS North East Lincolnshire CCG,31/01/2021,ME - PMS TPS Added Years Adj EEs,PRC DELEGATED CO-COMMISSIONING,ROXTON PRACTICE,35230734,-434.88,URLS,DN40 1JW,KHU000042119
Department of Health,NHS North East Lincolnshire CCG,31/01/2021,ME-PMS GP Pension EEs-PMS,PRC DELEGATED CO-COMMISSIONING,ROXTON PRACTICE,35230734,"-14,810.86",SUPCEE,DN40 1JW,KHU000042119
Department of Health,NHS North East Lincolnshire CCG,31/01/2021,ME-PMS GP Pension ERs Adjs - PMS,PRC DELEGATED CO-COMMISSIONING,ROXTON PRACTICE,35230734,"-15,416.28",SUPCER,DN40 1JW,KHU000042119
Department of Health,NHS North East Lincolnshire CCG,31/01/2021,C&M- PCN DES CARE HOME PREMIUM,PRC DELEGATED CO-COMMISSIONING,ROXTON PRACTICE,35230735,"3,097.50",CHOMPP,DN40 1JW,KHU000042120
Department of Health,NHS North East Lincolnshire CCG,31/01/2021,C&M-PMS Contract Value,PRC DELEGATED CO-COMMISSIONING,ROXTON PRACTICE,35230735,"252,858.52",BABALP,DN40 1JW,KHU000042120
Department of Health,NHS North East Lincolnshire CCG,31/01/2021,C&M-PMS DES Extended Hours Access,PRC DELEGATED CO-COMMISSIONING,ROXTON PRACTICE,35230735,"8,975.74",EXTHDP,DN40 1JW,KHU000042120
Department of Health,NHS North East Lincolnshire CCG,31/01/2021,C&M-PMS DES Patient Participation,PRC DELEGATED CO-COMMISSIONING,ROXTON PRACTICE,35230735,666.58,PATPAP,DN40 1JW,KHU000042120
Department of Health,NHS North East Lincolnshire CCG,31/01/2021,C&M-PMS PCN DES Clinical Director,PRC DELEGATED CO-COMMISSIONING,ROXTON PRACTICE,35230735,"4,469.30",CLINDP,DN40 1JW,KHU000042120
Department of Health,NHS North East Lincolnshire CCG,31/01/2021,C&M-PMS PCN DES PCN support,LOCAL ENHANCED SERVICES,ROXTON PRACTICE,35230735,"9,285.26",PCNSUP,DN40 1JW,KHU000042120
Department of Health,NHS North East Lincolnshire CCG,31/01/2021,C&M-PMS PCN DES Participation,PRC DELEGATED CO-COMMISSIONING,ROXTON PRACTICE,35230735,"4,104.83",PARTIP,DN40 1JW,KHU000042120
Department of Health,NHS North East Lincolnshire CCG,31/01/2021,C&M-PMS PCO Other,PRC DELEGATED CO-COMMISSIONING,ROXTON PRACTICE,35230735,"1,486.00",CQCRP,DN40 1JW,KHU000042120
Department of Health,NHS North East Lincolnshire CCG,31/01/2021,C&M-PMS Prem Actual Rent,PRC DELEGATED CO-COMMISSIONING,ROXTON PRACTICE,35230735,"4,850.51",RENT,DN40 1JW,KHU000042120
Department of Health,NHS North East Lincolnshire CCG,31/01/2021,C&M-PMS Prem Rates,PRC DELEGATED CO-COMMISSIONING,ROXTON PRACTICE,35230735,"6,791.00",RANDRP,DN40 1JW,KHU000042120
Department of Health,NHS North East Lincolnshire CCG,31/01/2021,C&M-PMS Prem Water Rates,PRC DELEGATED CO-COMMISSIONING,ROXTON PRACTICE,35230735,125.93,RAMWP,DN40 1JW,KHU000042120
Department of Health,NHS North East Lincolnshire CCG,31/01/2021,C&M-PMS QOF Aspiration,PRC DELEGATED CO-COMMISSIONING,ROXTON PRACTICE,35230735,"21,075.27",QUASPP,DN40 1JW,KHU000042120
Department of Health,NHS North East Lincolnshire CCG,31/01/2021,C&M-APMS Contract Value,PRC DELEGATED CO-COMMISSIONING,OPEN DOOR,35230736,"33,687.18",APMADD,DN32 7DL,KHU000042121
Department of Health,NHS North East Lincolnshire CCG,31/01/2021,C&M-APMS List Size Adjustment,PRC DELEGATED CO-COMMISSIONING,OPEN DOOR,35230736,799.94,LISTAA,DN32 7DL,KHU000042121
Department of Health,NHS North East Lincolnshire CCG,31/01/2021,C&M-APMS Prem Actual Rent,PRC DELEGATED CO-COMMISSIONING,OPEN DOOR,35230736,"2,100.00",RENTA,DN32 7DL,KHU000042121
Department of Health,NHS North East Lincolnshire CCG,31/01/2021,C&M-APMS Prem Rates,PRC DELEGATED CO-COMMISSIONING,OPEN DOOR,35230736,"1,235.00",RANDRA,DN32 7DL,KHU000042121
Department of Health,NHS North East Lincolnshire CCG,31/01/2021,C&M-APMS Prem Water Rates,PRC DELEGATED CO-COMMISSIONING,OPEN DOOR,35230736,580.02,RAMWA,DN32 7DL,KHU000042121
Department of Health,NHS North East Lincolnshire CCG,31/01/2021,C&M-APMS QOF Aspiration,PRC DELEGATED CO-COMMISSIONING,OPEN DOOR,35230736,68.07,ASPIRA,DN32 7DL,KHU000042121
Department of Health,NHS North East Lincolnshire CCG,31/01/2021,C&M-PMS PCN DES Participation,PRC DELEGATED CO-COMMISSIONING,OPEN DOOR,35230736,244.50,PARTIP,DN32 7DL,KHU000042121
Department of Health,NHS North East Lincolnshire CCG,31/01/2021,C&M-PMS QOF Aspiration,PRC DELEGATED CO-COMMISSIONING,OPEN DOOR,35230736,"1,086.62",QUASPP,DN32 7DL,KHU000042121
Department of Health,NHS North East Lincolnshire CCG,31/01/2021,C&M-PMS Contract Value,PRC DELEGATED CO-COMMISSIONING,DR AP KUMAR,35230738,"29,696.83",BABALP,DN31 3AE,KHU000042125
Department of Health,NHS North East Lincolnshire CCG,31/01/2021,C&M-PMS PCN DES Participation,PRC DELEGATED CO-COMMISSIONING,DR AP KUMAR,35230738,560.51,PARTIP,DN31 3AE,KHU000042125
Department of Health,NHS North East Lincolnshire CCG,31/01/2021,C&M-PMS PCO Locum Sickness,PRC DELEGATED CO-COMMISSIONING,DR AP KUMAR,35230738,"7,356.38",SICKS,DN31 3AE,KHU000042125
Department of Health,NHS North East Lincolnshire CCG,31/01/2021,C&M-PMS PCO Other,PRC DELEGATED CO-COMMISSIONING,DR AP KUMAR,35230738,252.20,CQCRP,DN31 3AE,KHU000042125
Department of Health,NHS North East Lincolnshire CCG,31/01/2021,C&M-PMS Prem Rates,PRC DELEGATED CO-COMMISSIONING,DR AP KUMAR,35230738,747.00,RANDRP,DN31 3AE,KHU000042125
Department of Health,NHS North East Lincolnshire CCG,31/01/2021,C&M-PMS QOF Aspiration,PRC DELEGATED CO-COMMISSIONING,DR AP KUMAR,35230738,"3,076.63",QUASPP,DN31 3AE,KHU000042125
Department of Health,NHS North East Lincolnshire CCG,31/01/2021,C&M-PMS Contract Value,PRC DELEGATED CO-COMMISSIONING,CLEE MEDICAL CENTRE,35230740,"115,232.51",BABALP,DN35 7XE,KHU000042127
Department of Health,NHS North East Lincolnshire CCG,31/01/2021,C&M-PMS PCN DES Participation,PRC DELEGATED CO-COMMISSIONING,CLEE MEDICAL CENTRE,35230740,"2,174.94",PARTIP,DN35 7XE,KHU000042127
Department of Health,NHS North East Lincolnshire CCG,31/01/2021,C&M-PMS PCO Other,PRC DELEGATED CO-COMMISSIONING,CLEE MEDICAL CENTRE,35230740,861.60,CQCRP,DN35 7XE,KHU000042127
Department of Health,NHS North East Lincolnshire CCG,31/01/2021,C&M-PMS Prem Rates,PRC DELEGATED CO-COMMISSIONING,CLEE MEDICAL CENTRE,35230740,"1,565.00",RANDRP,DN35 7XE,KHU000042127
Department of Health,NHS North East Lincolnshire CCG,31/01/2021,C&M-PMS QOF Aspiration,PRC DELEGATED CO-COMMISSIONING,CLEE MEDICAL CENTRE,35230740,"14,074.83",QUASPP,DN35 7XE,KHU000042127
Department of Health,NHS North East Lincolnshire CCG,31/01/2021,C&M-PMS Contract Value,PRC DELEGATED CO-COMMISSIONING,CHANTRY HEALTH GROUP,35230742,"51,586.02",BABALP,DN31 1QZ,KHU000042129
Department of Health,NHS North East Lincolnshire CCG,31/01/2021,C&M-PMS PCN DES Participation,PRC DELEGATED CO-COMMISSIONING,CHANTRY HEALTH GROUP,35230742,973.65,PARTIP,DN31 1QZ,KHU000042129
Department of Health,NHS North East Lincolnshire CCG,31/01/2021,C&M-PMS Prem Rates,PRC DELEGATED CO-COMMISSIONING,CHANTRY HEALTH GROUP,35230742,"2,270.00",RANDRP,DN31 1QZ,KHU000042129
Department of Health,NHS North East Lincolnshire CCG,31/01/2021,C&M-PMS QOF Aspiration,PRC DELEGATED CO-COMMISSIONING,CHANTRY HEALTH GROUP,35230742,"5,570.92",QUASPP,DN31 1QZ,KHU000042129
Department of Health,NHS North East Lincolnshire CCG,31/01/2021,C&M-PMS Contract Value,PRC DELEGATED CO-COMMISSIONING,DR OZ QURESHI,35230744,"33,169.26",BABALP,DN35 0LN,KHU000042131
Department of Health,NHS North East Lincolnshire CCG,31/01/2021,C&M-PMS List Size Adjustment,PRC DELEGATED CO-COMMISSIONING,DR OZ QURESHI,35230744,357.17,LISTAP,DN35 0LN,KHU000042131
Department of Health,NHS North East Lincolnshire CCG,31/01/2021,C&M-PMS PCN DES Participation,PRC DELEGATED CO-COMMISSIONING,DR OZ QURESHI,35230744,626.05,PARTIP,DN35 0LN,KHU000042131
Department of Health,NHS North East Lincolnshire CCG,31/01/2021,C&M-PMS PCO Other,PRC DELEGATED CO-COMMISSIONING,DR OZ QURESHI,35230744,269.80,CQCRP,DN35 0LN,KHU000042131
Department of Health,NHS North East Lincolnshire CCG,31/01/2021,C&M-PMS QOF Aspiration,PRC DELEGATED CO-COMMISSIONING,DR OZ QURESHI,35230744,"3,736.33",QUASPP,DN35 0LN,KHU000042131
Department of Health,NHS North East Lincolnshire CCG,31/01/2021,C&M-PMS Contract Value,PRC DELEGATED CO-COMMISSIONING,LYNTON PRACTICE LTD,35230750,"35,551.87",BABALP,DN35 0LN,KHU000042137
Department of Health,NHS North East Lincolnshire CCG,31/01/2021,C&M-PMS List Size Adjustment,PRC DELEGATED CO-COMMISSIONING,LYNTON PRACTICE LTD,35230750,863.10,LISTAP,DN35 0LN,KHU000042137
Department of Health,NHS North East Lincolnshire CCG,31/01/2021,C&M-PMS PCN DES Participation,PRC DELEGATED CO-COMMISSIONING,LYNTON PRACTICE LTD,35230750,671.02,PARTIP,DN35 0LN,KHU000042137
Department of Health,NHS North East Lincolnshire CCG,31/01/2021,C&M-PMS QOF Aspiration,PRC DELEGATED CO-COMMISSIONING,LYNTON PRACTICE LTD,35230750,"3,888.62",QUASPP,DN35 0LN,KHU000042137
Department of Health,NHS North East Lincolnshire CCG,31/01/2021,C&M-PMS Contract Value,PRC DELEGATED CO-COMMISSIONING,SCARTHO MEDICAL CENTRE,35230752,"106,103.97",BABALP,DN33 3JF,KHU000042139
Department of Health,NHS North East Lincolnshire CCG,31/01/2021,C&M-PMS PCN DES Participation,PRC DELEGATED CO-COMMISSIONING,SCARTHO MEDICAL CENTRE,35230752,"2,002.65",PARTIP,DN33 3JF,KHU000042139
Department of Health,NHS North East Lincolnshire CCG,31/01/2021,C&M-PMS Prem Actual Rent,PRC DELEGATED CO-COMMISSIONING,SCARTHO MEDICAL CENTRE,35230752,"19,218.32",RENT,DN33 3JF,KHU000042139
Department of Health,NHS North East Lincolnshire CCG,31/01/2021,C&M-PMS Prem Rates,PRC DELEGATED CO-COMMISSIONING,SCARTHO MEDICAL CENTRE,35230752,"3,482.00",RANDRP,DN33 3JF,KHU000042139
Department of Health,NHS North East Lincolnshire CCG,31/01/2021,C&M-PMS QOF Aspiration,PRC DELEGATED CO-COMMISSIONING,SCARTHO MEDICAL CENTRE,35230752,"12,106.48",QUASPP,DN33 3JF,KHU000042139
Department of Health,NHS North East Lincolnshire CCG,31/01/2021,C&M-PMS Contract Value,PRC DELEGATED CO-COMMISSIONING,WOODFORD MEDICAL CENTRE,35230758,"77,310.42",BABALP,DN34 4GB,KHU000042145
Department of Health,NHS North East Lincolnshire CCG,31/01/2021,C&M-PMS List Size Adjustment,PRC DELEGATED CO-COMMISSIONING,WOODFORD MEDICAL CENTRE,35230758,677.74,LISTAP,DN34 4GB,KHU000042145
Department of Health,NHS North East Lincolnshire CCG,31/01/2021,C&M-PMS PCN DES Participation,PRC DELEGATED CO-COMMISSIONING,WOODFORD MEDICAL CENTRE,35230758,"1,459.19",PARTIP,DN34 4GB,KHU000042145
Department of Health,NHS North East Lincolnshire CCG,31/01/2021,C&M-PMS QOF Aspiration,PRC DELEGATED CO-COMMISSIONING,WOODFORD MEDICAL CENTRE,35230758,"7,718.61",QUASPP,DN34 4GB,KHU000042145
Department of Health,NHS North East Lincolnshire CCG,31/01/2021,C&M-PMS Contract Value,PRC DELEGATED CO-COMMISSIONING,BIRKWOOD MEDICAL CENTRE,35230760,"68,730.32",BABALP,DN34 5DX,KHU000042147
Department of Health,NHS North East Lincolnshire CCG,31/01/2021,C&M-PMS PCN DES Participation,PRC DELEGATED CO-COMMISSIONING,BIRKWOOD MEDICAL CENTRE,35230760,"1,297.24",PARTIP,DN34 5DX,KHU000042147
Department of Health,NHS North East Lincolnshire CCG,31/01/2021,C&M-PMS QOF Aspiration,PRC DELEGATED CO-COMMISSIONING,BIRKWOOD MEDICAL CENTRE,35230760,"5,932.97",QUASPP,DN34 5DX,KHU000042147
Department of Health,NHS North East Lincolnshire CCG,31/01/2021,C&M-PMS Contract Value,PRC DELEGATED CO-COMMISSIONING,PELHAM MEDICAL CENTRE,35230762,"77,056.06",BABALP,DN31 1QZ,KHU000042149
Department of Health,NHS North East Lincolnshire CCG,31/01/2021,C&M-PMS PCN DES Participation,PRC DELEGATED CO-COMMISSIONING,PELHAM MEDICAL CENTRE,35230762,"1,454.39",PARTIP,DN31 1QZ,KHU000042149
Department of Health,NHS North East Lincolnshire CCG,31/01/2021,C&M-PMS PCO Doctors Ret Scheme,PRC DELEGATED CO-COMMISSIONING,PELHAM MEDICAL CENTRE,35230762,"1,333.28",GPRET,DN31 1QZ,KHU000042149
Department of Health,NHS North East Lincolnshire CCG,31/01/2021,C&M-PMS PCO Locum Adop/Pat/Mat,PRC DELEGATED CO-COMMISSIONING,PELHAM MEDICAL CENTRE,35230762,"4,904.26",SICKC,DN31 1QZ,KHU000042149
Department of Health,NHS North East Lincolnshire CCG,31/01/2021,C&M-PMS PCO Other,PRC DELEGATED CO-COMMISSIONING,PELHAM MEDICAL CENTRE,35230762,596.70,CQCRP,DN31 1QZ,KHU000042149
Department of Health,NHS North East Lincolnshire CCG,31/01/2021,C&M-PMS Prem Rates,PRC DELEGATED CO-COMMISSIONING,PELHAM MEDICAL CENTRE,35230762,"1,306.00",RANDRP,DN31 1QZ,KHU000042149
Department of Health,NHS North East Lincolnshire CCG,31/01/2021,C&M-PMS QOF Aspiration,PRC DELEGATED CO-COMMISSIONING,PELHAM MEDICAL CENTRE,35230762,"7,787.74",QUASPP,DN31 1QZ,KHU000042149
Department of Health,NHS North East Lincolnshire CCG,31/01/2021,ME-PMS GP Pension EEs Adjs - PMS,PRC DELEGATED CO-COMMISSIONING,PELHAM MEDICAL CENTRE,35230762,"2,250.00",PENEEP,DN31 1QZ,KHU000042149
Department of Health,NHS North East Lincolnshire CCG,31/01/2021,ME-PMS GP Pension ERs Adjs - PMS,PRC DELEGATED CO-COMMISSIONING,PELHAM MEDICAL CENTRE,35230762,"2,588.00",PENERP,DN31 1QZ,KHU000042149
Department of Health,NHS North East Lincolnshire CCG,31/01/2021,C&M-PMS Contract Value,PRC DELEGATED CO-COMMISSIONING,FIELDHOUSE MEDICAL GROUP,35243987,"96,694.49",BABALP,DN34 4GB,KHU000042123
Department of Health,NHS North East Lincolnshire CCG,31/01/2021,C&M-PMS PCN DES Participation,PRC DELEGATED CO-COMMISSIONING,FIELDHOUSE MEDICAL GROUP,35243987,"1,825.05",PARTIP,DN34 4GB,KHU000042123
Department of Health,NHS North East Lincolnshire CCG,31/01/2021,C&M-PMS QOF Aspiration,PRC DELEGATED CO-COMMISSIONING,FIELDHOUSE MEDICAL GROUP,35243987,"10,036.31",QUASPP,DN34 4GB,KHU000042123
Department of Health,NHS North East Lincolnshire CCG,31/01/2021,ME-PMS GP Pension EEs Adjs - PMS,PRC DELEGATED CO-COMMISSIONING,FIELDHOUSE MEDICAL GROUP,35243987,254.15,PENEEP,DN34 4GB,KHU000042123
Department of Health,NHS North East Lincolnshire CCG,31/01/2021,ME-PMS GP Pension ERs Adjs - PMS,PRC DELEGATED CO-COMMISSIONING,FIELDHOUSE MEDICAL GROUP,35243987,392.95,PENERP,DN34 4GB,KHU000042123
Department of Health,NHS North East Lincolnshire CCG,31/01/2021,C&M-APMS DES Extended Hours Access,PRC DELEGATED CO-COMMISSIONING,HUMBERVIEW SURGERY,35258313,"-4,735.34",ZEXTA,DN313AE,KHU000042111
Department of Health,NHS North East Lincolnshire CCG,31/01/2021,C&M-APMS PCN DES Clinical Director,PRC DELEGATED CO-COMMISSIONING,HUMBERVIEW SURGERY,35258313,"-2,357.87",CLINDA,DN313AE,KHU000042111
Department of Health,NHS North East Lincolnshire CCG,31/01/2021,C&M-APMS PCN DES PCN support,LOCAL ENHANCED SERVICES,HUMBERVIEW SURGERY,35258313,"-4,898.63",PCNSUA,DN313AE,KHU000042111
Department of Health,NHS North East Lincolnshire CCG,31/01/2021,ME - PMS GP Prior Year ERs,PRC DELEGATED CO-COMMISSIONING,HUMBERVIEW SURGERY,35258313,"-1,920.43",PRYERP,DN313AE,KHU000042111
Department of Health,NHS North East Lincolnshire CCG,31/01/2021,ME-PMS GP Pension EEs Adjs - PMS,PRC DELEGATED CO-COMMISSIONING,HUMBERVIEW SURGERY,35258313,"-4,500.00",PENEEP,DN313AE,KHU000042111
Department of Health,NHS North East Lincolnshire CCG,31/01/2021,ME-PMS GP Pension ERs Adjs - PMS,PRC DELEGATED CO-COMMISSIONING,HUMBERVIEW SURGERY,35258313,"-5,176.80",PENERP,DN313AE,KHU000042111
Department of Health,NHS North East Lincolnshire CCG,31/01/2021,ME-PMS GP Prior Year EEs,PRC DELEGATED CO-COMMISSIONING,HUMBERVIEW SURGERY,35258313,"-1,669.36",PRYEEP,DN313AE,KHU000042111
Department of Health,NHS North East Lincolnshire CCG,31/01/2021,C&M- PCN DES CARE HOME PREMIUM,PRC DELEGATED CO-COMMISSIONING,HUMBERVIEW SURGERY,35258314,"2,625.00",CHOMPA,DN313AE,KHU000042112
Department of Health,NHS North East Lincolnshire CCG,31/01/2021,C&M-APMS Contract Value,PRC DELEGATED CO-COMMISSIONING,HUMBERVIEW SURGERY,35258314,"15,482.82",APMADD,DN313AE,KHU000042112
Department of Health,NHS North East Lincolnshire CCG,31/01/2021,C&M-APMS DES Extended Hours Access,PRC DELEGATED CO-COMMISSIONING,HUMBERVIEW SURGERY,35258314,"9,477.21",ZEXTA,DN313AE,KHU000042112
Department of Health,NHS North East Lincolnshire CCG,31/01/2021,C&M-APMS List Size Adjustment,PRC DELEGATED CO-COMMISSIONING,HUMBERVIEW SURGERY,35258314,453.05,LISTAA,DN313AE,KHU000042112
Department of Health,NHS North East Lincolnshire CCG,31/01/2021,C&M-APMS PCN DES Clinical Director,PRC DELEGATED CO-COMMISSIONING,HUMBERVIEW SURGERY,35258314,"4,709.21",CLINDA,DN313AE,KHU000042112
Department of Health,NHS North East Lincolnshire CCG,31/01/2021,C&M-APMS PCN DES PCN support,LOCAL ENHANCED SERVICES,HUMBERVIEW SURGERY,35258314,"9,797.25",PCNSUA,DN313AE,KHU000042112
Department of Health,NHS North East Lincolnshire CCG,31/01/2021,C&M-APMS PCO Other,PRC DELEGATED CO-COMMISSIONING,HUMBERVIEW SURGERY,35258314,160.80,CQCRA,DN313AE,KHU000042112
Department of Health,NHS North East Lincolnshire CCG,31/01/2021,C&M-APMS Prem Rates,PRC DELEGATED CO-COMMISSIONING,HUMBERVIEW SURGERY,35258314,399.00,RANDRA,DN313AE,KHU000042112
Department of Health,NHS North East Lincolnshire CCG,31/01/2021,C&M-PMS PCN DES Participation,PRC DELEGATED CO-COMMISSIONING,HUMBERVIEW SURGERY,35258314,292.23,PARTIP,DN313AE,KHU000042112
Department of Health,NHS North East Lincolnshire CCG,31/01/2021,C&M-PMS QOF Aspiration,PRC DELEGATED CO-COMMISSIONING,HUMBERVIEW SURGERY,35258314,"1,561.55",QUASPP,DN313AE,KHU000042112
Department of Health,NHS North East Lincolnshire CCG,31/01/2021,ME-PMS GP Pension EEs Adjs - PMS,PRC DELEGATED CO-COMMISSIONING,HUMBERVIEW SURGERY,35258314,"2,830.65",PENEEP,DN313AE,KHU000042112
Department of Health,NHS North East Lincolnshire CCG,31/01/2021,ME-PMS GP Pension ERs Adjs - PMS,PRC DELEGATED CO-COMMISSIONING,HUMBERVIEW SURGERY,35258314,"3,256.37",PENERP,DN313AE,KHU000042112
Department of Health,NHS North East Lincolnshire CCG,31/01/2021,Hcare Srv Rec NHS Trust-Contract Baseline,AMBULANCE SERVICES,EAST MIDLANDS AMBULANCE SERVICE NHS TRUST,35274425,"540,744.00",East Midlands Ambulance Service NHS Trust SLA Feb 21,NG18 4RG,5709264FEB21
Department of Health,NHS North East Lincolnshire CCG,31/01/2021,Hcare Srv Rec NHS Trust-Contract Baseline,ACUTE COMMISSIONING,HULL UNIVERSITY TEACHING HOSPITAL NHS TRUST,35274433,"793,332.00",Hull University Teaching Hospitals NHS Trust SLA Feb 21,BB3 0FG,5702853FEB21
Department of Health,NHS North East Lincolnshire CCG,31/01/2021,Hcare Srv Rec Fdtn Trust-Contract Baseline,ACUTE COMMISSIONING,NORTHERN LINCOLNSHIRE AND GOOLE HOSPITALS NHS FOUNDATION TRUST,35274434,"9,828,243.00",Northern Lincolnshire And Goole NHS Foundation Trust SLA Feb 21,DN33 2BA,527796FEB21
Department of Health,NHS North East Lincolnshire CCG,31/01/2021,Hcare Srv Rec Fdtn Trust-Contract Baseline,ACUTE COMMISSIONING,SHEFFIELD TEACHING HOSPITALS NHS FOUNDATION TRUST,35274436,"80,529.00",Sheffield Teaching Hospitals NHS Foundation Trust SLA Feb 21,S5 7AU,210286FEB21
Department of Health,NHS North East Lincolnshire CCG,31/01/2021,Hcare Srv Rec NHS Trust-Contract Baseline,ACUTE COMMISSIONING,LEEDS TEACHING HOSPITALS NHS TRUST,35274439,"46,376.00",Leeds Teaching Hospitals NHS Trust SLA Feb 21,LS9 7TF,209699FEB21
Department of Health,NHS North East Lincolnshire CCG,31/01/2021,Clinical&Medical-Commercial Sector,ASC PRIORITY 3 AND 4 SERVICES,RETHINK,35274904,"1,394.05",http://nww.docserv.wyss.nhs.uk/synergyiim/dist/?val=2360424_12799488_20200907120555,DY4 7UF,23627
Department of Health,NHS North East Lincolnshire CCG,31/01/2021,Clinical&Medical-Commercial Sector,ASC PRIORITY 3 AND 4 SERVICES,RETHINK,35274904,"6,970.25",,DY4 7UF,23627
Department of Health,NHS North East Lincolnshire CCG,31/01/2021,Clinical&Medical-Voluntary Sector,MENTAL HEALTH SERVICES - ADVOCACY,RETHINK,35274904,"3,719.31",http://nww.docserv.wyss.nhs.uk/synergyiim/dist/?val=2360424_12799488_20200907120555,DY4 7UF,23627
Department of Health,NHS North East Lincolnshire CCG,31/01/2021,Clinical&Medical-Voluntary Sector,MENTAL HEALTH SERVICES - ADVOCACY,RETHINK,35274904,"18,596.59",,DY4 7UF,23627
Department of Health,NHS North East Lincolnshire CCG,31/01/2021,Social Care-Res Short Stay Exp,ASC MENTAL HEALTH RESIDENTIAL,RETHINK,35274904,116.67,http://nww.docserv.wyss.nhs.uk/synergyiim/dist/?val=2360424_12799488_20200907120555,DY4 7UF,23627
Department of Health,NHS North East Lincolnshire CCG,31/01/2021,Social Care-Res Short Stay Exp,ASC MENTAL HEALTH RESIDENTIAL,RETHINK,35274904,583.33,,DY4 7UF,23627
Department of Health,NHS North East Lincolnshire CCG,31/01/2021,Clinical&Medical-Commercial Sector,ASC PRIORITY 3 AND 4 SERVICES,RETHINK,35274905,"1,394.05",http://nww.docserv.wyss.nhs.uk/synergyiim/dist/?val=2512771_12996354_20201001140936,DY4 7UF,23898
Department of Health,NHS North East Lincolnshire CCG,31/01/2021,Clinical&Medical-Commercial Sector,ASC PRIORITY 3 AND 4 SERVICES,RETHINK,35274905,"6,970.25",,DY4 7UF,23898
Department of Health,NHS North East Lincolnshire CCG,31/01/2021,Clinical&Medical-Voluntary Sector,MENTAL HEALTH SERVICES - ADVOCACY,RETHINK,35274905,"3,719.31",http://nww.docserv.wyss.nhs.uk/synergyiim/dist/?val=2512771_12996354_20201001140936,DY4 7UF,23898
Department of Health,NHS North East Lincolnshire CCG,31/01/2021,Clinical&Medical-Voluntary Sector,MENTAL HEALTH SERVICES - ADVOCACY,RETHINK,35274905,"18,596.59",,DY4 7UF,23898
Department of Health,NHS North East Lincolnshire CCG,31/01/2021,Social Care-Res Short Stay Exp,ASC MENTAL HEALTH RESIDENTIAL,RETHINK,35274905,116.67,http://nww.docserv.wyss.nhs.uk/synergyiim/dist/?val=2512771_12996354_20201001140936,DY4 7UF,23898
Department of Health,NHS North East Lincolnshire CCG,31/01/2021,Social Care-Res Short Stay Exp,ASC MENTAL HEALTH RESIDENTIAL,RETHINK,35274905,583.33,,DY4 7UF,23898
Department of Health,NHS North East Lincolnshire CCG,31/01/2021,Clinical&Medical-Commercial Sector,ASC PRIORITY 3 AND 4 SERVICES,RETHINK,35274906,"1,394.05",http://nww.docserv.wyss.nhs.uk/synergyiim/dist/?val=2718677_13248794_20201102115129,DY4 7UF,24094
Department of Health,NHS North East Lincolnshire CCG,31/01/2021,Clinical&Medical-Commercial Sector,ASC PRIORITY 3 AND 4 SERVICES,RETHINK,35274906,"6,970.25",,DY4 7UF,24094
Department of Health,NHS North East Lincolnshire CCG,31/01/2021,Clinical&Medical-Voluntary Sector,MENTAL HEALTH SERVICES - ADVOCACY,RETHINK,35274906,"3,719.31",http://nww.docserv.wyss.nhs.uk/synergyiim/dist/?val=2718677_13248794_20201102115129,DY4 7UF,24094
Department of Health,NHS North East Lincolnshire CCG,31/01/2021,Clinical&Medical-Voluntary Sector,MENTAL HEALTH SERVICES - ADVOCACY,RETHINK,35274906,"18,596.59",,DY4 7UF,24094
Department of Health,NHS North East Lincolnshire CCG,31/01/2021,Social Care-Res Short Stay Exp,ASC MENTAL HEALTH RESIDENTIAL,RETHINK,35274906,116.67,http://nww.docserv.wyss.nhs.uk/synergyiim/dist/?val=2718677_13248794_20201102115129,DY4 7UF,24094
Department of Health,NHS North East Lincolnshire CCG,31/01/2021,Social Care-Res Short Stay Exp,ASC MENTAL HEALTH RESIDENTIAL,RETHINK,35274906,583.33,,DY4 7UF,24094
Department of Health,NHS North East Lincolnshire CCG,31/01/2021,Clinical&Medical-Commercial Sector,ASC PRIORITY 3 AND 4 SERVICES,RETHINK,35274907,"1,394.05",http://nww.docserv.wyss.nhs.uk/synergyiim/dist/?val=2935646_13508191_20201201134434,DY4 7UF,24321
Department of Health,NHS North East Lincolnshire CCG,31/01/2021,Clinical&Medical-Commercial Sector,ASC PRIORITY 3 AND 4 SERVICES,RETHINK,35274907,"6,970.25",,DY4 7UF,24321
Department of Health,NHS North East Lincolnshire CCG,31/01/2021,Clinical&Medical-Voluntary Sector,MENTAL HEALTH SERVICES - ADVOCACY,RETHINK,35274907,"3,719.31",http://nww.docserv.wyss.nhs.uk/synergyiim/dist/?val=2935646_13508191_20201201134434,DY4 7UF,24321
Department of Health,NHS North East Lincolnshire CCG,31/01/2021,Clinical&Medical-Voluntary Sector,MENTAL HEALTH SERVICES - ADVOCACY,RETHINK,35274907,"18,596.59",,DY4 7UF,24321
Department of Health,NHS North East Lincolnshire CCG,31/01/2021,Social Care-Res Short Stay Exp,ASC MENTAL HEALTH RESIDENTIAL,RETHINK,35274907,116.67,http://nww.docserv.wyss.nhs.uk/synergyiim/dist/?val=2935646_13508191_20201201134434,DY4 7UF,24321
Department of Health,NHS North East Lincolnshire CCG,31/01/2021,Social Care-Res Short Stay Exp,ASC MENTAL HEALTH RESIDENTIAL,RETHINK,35274907,583.33,,DY4 7UF,24321
Department of Health,NHS North East Lincolnshire CCG,31/01/2021,Clinical&Medical-Commercial Sector,ASC PRIORITY 3 AND 4 SERVICES,RETHINK,35274913,"-2,453.71",http://nww.docserv.wyss.nhs.uk/synergyiim/dist/?val=3096484_13693640_20201222152543,DY4 7UF,C24407
Department of Health,NHS North East Lincolnshire CCG,31/01/2021,Clinical&Medical-Commercial Sector,ASC PRIORITY 3 AND 4 SERVICES,RETHINK,35274913,"-12,268.53",,DY4 7UF,C24407
Department of Health,NHS North East Lincolnshire CCG,31/01/2021,Clinical&Medical-Voluntary Sector,MENTAL HEALTH SERVICES - ADVOCACY,RETHINK,35274913,"-6,666.60",http://nww.docserv.wyss.nhs.uk/synergyiim/dist/?val=3096484_13693640_20201222152543,DY4 7UF,C24407
Department of Health,NHS North East Lincolnshire CCG,31/01/2021,Clinical&Medical-Voluntary Sector,MENTAL HEALTH SERVICES - ADVOCACY,RETHINK,35274913,"-33,333.03",,DY4 7UF,C24407
Department of Health,NHS North East Lincolnshire CCG,31/01/2021,Clinical&Medical-Commercial Sector,ASC PRIORITY 3 AND 4 SERVICES,CLOVERLEAF ADVOCACY 2000 LTD,35274915,"7,051.75",,WF13 1HF,9690
Department of Health,NHS North East Lincolnshire CCG,31/01/2021,Clinical&Medical-Commercial Sector,MENTAL HEALTH SERVICES - ADVOCACY,CLOVERLEAF ADVOCACY 2000 LTD,35274915,"33,595.25",https://nww.einvoice-prod.sbs.nhs.uk:8179/invoicepdf/ef28d1f9-9eeb-5ac6-8ac1-0173a1a1b989,WF13 1HF,9690
Department of Health,NHS North East Lincolnshire CCG,31/01/2021,Clinical&Medical-Independent Sector,PLANNED CARE,INHEALTH PAIN MANAGEMENT SOLUTIONS LTD,35297185,"29,483.06",https://nww.einvoice-prod.sbs.nhs.uk:8179/invoicepdf/73213ed4-0d17-5dcd-94a4-337f62330dfd,HP11 1JL,PMSIN001894
Department of Health,NHS North East Lincolnshire CCG,31/01/2021,Clinical&Medical-Commercial Sector,LEARNING DIFFICULTIES,ELYSIUM HEALTHCARE LTD,35297203,"42,687.31",https://nww.einvoice-prod.sbs.nhs.uk:8179/invoicepdf/886b3738-f819-53e8-ba5a-6a9bb5ed77f0,WD6 1JN,HLH00880
Department of Health,NHS North East Lincolnshire CCG,31/01/2021,Clinical&Medical-Commercial Sector,ASC PRIORITY 3 AND 4 SERVICES,RETHINK,35357366,"1,121.42",http://nww.docserv.wyss.nhs.uk/synergyiim/dist/?val=3218383_13837616_20210112142811,DY4 7UF,24585
Department of Health,NHS North East Lincolnshire CCG,31/01/2021,Clinical&Medical-Commercial Sector,ASC PRIORITY 3 AND 4 SERVICES,RETHINK,35357366,"5,607.08",,DY4 7UF,24585
Department of Health,NHS North East Lincolnshire CCG,31/01/2021,Clinical&Medical-Voluntary Sector,MENTAL HEALTH SERVICES - ADVOCACY,RETHINK,35357366,"2,978.58",http://nww.docserv.wyss.nhs.uk/synergyiim/dist/?val=3218383_13837616_20210112142811,DY4 7UF,24585
Department of Health,NHS North East Lincolnshire CCG,31/01/2021,Clinical&Medical-Voluntary Sector,MENTAL HEALTH SERVICES - ADVOCACY,RETHINK,35357366,"14,892.92",,DY4 7UF,24585
Department of Health,NHS North East Lincolnshire CCG,31/01/2021,Social Care-Res Short Stay Exp,ASC MENTAL HEALTH RESIDENTIAL,RETHINK,35357366,116.67,http://nww.docserv.wyss.nhs.uk/synergyiim/dist/?val=3218383_13837616_20210112142811,DY4 7UF,24585
Department of Health,NHS North East Lincolnshire CCG,31/01/2021,Social Care-Res Short Stay Exp,ASC MENTAL HEALTH RESIDENTIAL,RETHINK,35357366,583.33,,DY4 7UF,24585
Department of Health,NHS North East Lincolnshire CCG,31/01/2021,Clinical&Medical-Independent Sector,ACUTE COMMISSIONING,NEW MEDICAL SYSTEMS LTD,35357394,"55,100.06",https://nww.einvoice-prod.sbs.nhs.uk:8179/invoicepdf/703f3b24-3e4b-58b2-b5ee-87d0c110372b,SE1 6ES,000003767
Department of Health,NHS North East Lincolnshire CCG,31/01/2021,Clinical&Medical-Commercial Sector,ASC PRIORITY 3 AND 4 SERVICES,NORTH EAST LINCS CARELINK,35371987,"30,552.00",https://nww.einvoice-prod.sbs.nhs.uk:8179/invoicepdf/c5b30aa4-c39c-5e9c-819d-8af5b378f284,DN33 1NU,58364
Department of Health,NHS North East Lincolnshire CCG,31/01/2021,C&M-PMS LES LTC Case Management,LOCAL ENHANCED SERVICES,HUMBERVIEW SURGERY,35374663,"32,541.25",Freshney Pelham (Paying Humberview) Enhanced Primary Care Condition Monies Jan21,DN313AE,JAN21EPC1
Department of Health,NHS North East Lincolnshire CCG,31/01/2021,C&M-PMS LES LTC Case Management,LOCAL ENHANCED SERVICES,ROXTON PRACTICE,35374664,"30,916.14",Meridian (Paying Roxton) Enhanced Primary Care Condition Monies Jan21,DN40 1JW,JAN21EPC2
Department of Health,NHS North East Lincolnshire CCG,31/01/2021,C&M-PMS LES LTC Case Management,LOCAL ENHANCED SERVICES,DR R MATHEWS,35374665,"78,080.06",Panacea (Paying Dr Mathews) Enhanced Primary Care Condition Monies Jan21,DN313AE,JAN21EPC3
Department of Health,NHS North East Lincolnshire CCG,31/01/2021,C&M-GP PRACTICE REVENUE - PCTF,GP FORWARD VIEW,DR R MATHEWS,35386302,"46,989.00",Panacea (Paying Dr Mathews) Extended Access 2020/21 Monthly Monies M9,DN313AE,EXTACC21M10C
Department of Health,NHS North East Lincolnshire CCG,31/01/2021,Miscellaneous Expenditure (L9),CONTINUING HEALTHCARE ASSESSMENT & SUPPORT,NHS DONCASTER CCG,35390843,"-45,784.00",CCG INCOME - NON CONTRACT 44811015,WF3 1WE,7014902045
Department of Health,NHS North East Lincolnshire CCG,31/01/2021,Miscellaneous Expenditure (L9),CONTINUING HEALTHCARE ASSESSMENT & SUPPORT,NHS DONCASTER CCG,35405917,"45,784.00",CCG INCOME - NON CONTRACT 44811015,WF3 1WE,7014902044
Department of Health,NHS North East Lincolnshire CCG,31/01/2021,Clinical&Medical-Commercial Sector,ASC CARERS SERVICES,ALZHEIMERS SOCIETY,35405947,"5,000.00",,PL2 3DU,PSI180183
Department of Health,NHS North East Lincolnshire CCG,31/01/2021,Clinical&Medical-Commercial Sector,ASC PRIORITY 3 AND 4 SERVICES,ALZHEIMERS SOCIETY,35405947,"45,000.00",,PL2 3DU,PSI180183
Department of Health,NHS North East Lincolnshire CCG,31/01/2021,C&M-PMS Cost of Drugs -Dispensing,LOCAL ENHANCED SERVICES,ROXTON PRACTICE,35423872,"-62,796.20",DRGREC,DN40 1JW,KHU000042296
Department of Health,NHS North East Lincolnshire CCG,31/01/2021,C&M-PMS Prsc Chrgs Cll&Rmttd by GPs,PRC DELEGATED CO-COMMISSIONING,ROXTON PRACTICE,35423872,"-3,605.10",DRGPRX,DN40 1JW,KHU000042296
Department of Health,NHS North East Lincolnshire CCG,31/01/2021,C&M-PMS Cost of Drugs -Dispensing,LOCAL ENHANCED SERVICES,ROXTON PRACTICE,35423873,"149,284.24","DRGD,DRGADV",DN40 1JW,KHU000042297
Department of Health,NHS North East Lincolnshire CCG,31/01/2021,C&M-PMS Prof fees Dispensing,PRC DELEGATED CO-COMMISSIONING,ROXTON PRACTICE,35423873,"26,002.28",DRGDPF,DN40 1JW,KHU000042297
Department of Health,NHS North East Lincolnshire CCG,31/01/2021,C&M-PMS Prsc Chrgs Cll&Rmttd by GPs,LOCAL ENHANCED SERVICES,ROXTON PRACTICE,35423873,"3,605.10",DRGPR,DN40 1JW,KHU000042297
Department of Health,NHS North East Lincolnshire CCG,31/01/2021,Clinical&Medical-Independent Sector,PLANNED CARE,INHEALTH PAIN MANAGEMENT SOLUTIONS LTD,35433087,"32,070.63",https://nww.einvoice-prod.sbs.nhs.uk:8179/invoicepdf/3a562fd5-391c-5b44-9ef0-8646d7e510bc,HP11 1JL,PMSIN001948
Department of Health,NHS North East Lincolnshire CCG,31/01/2021,C&M-GP PRACTICE REVENUE - PCTF,GP FORWARD VIEW,IDEAL HEALTH CONSULTANTS LTD,35455951,"146,666.00",https://nww.einvoice-prod.sbs.nhs.uk:8179/invoicepdf/311fc505-646b-545b-b8c8-e08bbfcc6fd1,GU1 4SJ,6476
Department of Health,NHS North East Lincolnshire CCG,31/01/2021,C&M-GP PRACTICE REVENUE - PCTF,GP FORWARD VIEW,ORCHA HEALTH LTD,35455955,"98,886.00",,WA4 4AB,INV0473
